[Event "Titled Tuesday Blitz June 27 Late 2023"]
[White "Torres Dominguez, David"]
[Black "Szente Varga, Fruzsina"]
[WhiteFideId "2220857"]
[BlackFideId "712264"]
[WhiteElo "2103"]
[BlackElo "2333"]
[Result "1-0"]
[Round "6"]
[TimeControl "180+2"]
[Date "2023.06.27"]
[WhiteClock "0:01:31"]
[BlackClock "0:00:55"]
[Board "144"]

1. e4 {[%clk 0:03:00]}  Nf6 {[%clk 0:02:58]} 2. Nc3 {[%clk 0:02:58]}  d5 {[%clk 0:02:55]} 3. d3 {[%clk 0:02:58]}  dxe4 {[%clk 0:02:54]} 4. Nxe4 {[%clk 0:02:59]}  Nxe4 {[%clk 0:02:54]} 5. dxe4 {[%clk 0:02:59]}  Qxd1+ {[%clk 0:02:55]} 6. Kxd1 {[%clk 0:03:00]}  e5 {[%clk 0:02:55]} 7. Be3 {[%clk 0:03:01]}  Nc6 {[%clk 0:02:54]} 8. c3 {[%clk 0:03:01]}  Be6 {[%clk 0:02:54]} 9. Kc2 {[%clk 0:03:01]}  O-O-O {[%clk 0:02:54]} 10. Nf3 {[%clk 0:03:01]}  f6 {[%clk 0:02:54]} 11. Nd2 {[%clk 0:03:01]}  f5 {[%clk 0:02:48]} 12. f3 {[%clk 0:02:58]}  f4 {[%clk 0:02:46]} 13. Bf2 {[%clk 0:02:58]}  Be7 {[%clk 0:02:36]} 14. b3 {[%clk 0:02:57]}  Rd7 {[%clk 0:02:36]} 15. Bc4 {[%clk 0:02:55]}  Bxc4 {[%clk 0:02:32]} 16. Nxc4 {[%clk 0:02:56]}  b5 {[%clk 0:02:31]} 17. Nd2 {[%clk 0:02:52]}  Rhd8 {[%clk 0:02:32]} 18. Rhd1 {[%clk 0:02:44]}  b4 {[%clk 0:02:12]} 19. c4 {[%clk 0:02:44]}  Nd4+ {[%clk 0:02:12]} 20. Bxd4 {[%clk 0:02:42]}  Rxd4 {[%clk 0:02:13]} 21. Nf1 {[%clk 0:02:32]}  g5 {[%clk 0:02:03]} 22. Rxd4 {[%clk 0:02:31]}  Rxd4 {[%clk 0:02:03]} 23. Rd1 {[%clk 0:02:32]}  Bc5 {[%clk 0:02:01]} 24. Rd3 {[%clk 0:02:29]}  h5 {[%clk 0:01:58]} 25. h3 {[%clk 0:02:27]}  Kd7 {[%clk 0:01:54]} 26. g4 {[%clk 0:02:20]}  hxg4 {[%clk 0:01:47]} 27. fxg4 {[%clk 0:02:08]}  Kd6 {[%clk 0:01:38]} 28. Nh2 {[%clk 0:02:06]}  Kc6 {[%clk 0:01:34]} 29. Rxd4 {[%clk 0:02:04]}  Bxd4 {[%clk 0:01:26]} 30. Nf3 {[%clk 0:02:03]}  Bf2 {[%clk 0:01:25]} 31. Nxe5+ {[%clk 0:01:59]}  Kc5 {[%clk 0:01:23]} 32. Nd3+ {[%clk 0:01:59]}  Kd4 {[%clk 0:01:23]} 33. Nxf2 {[%clk 0:01:59]}  c5 {[%clk 0:01:23]} 34. Kd2 {[%clk 0:01:56]}  a6 {[%clk 0:01:22]} 35. Ke2 {[%clk 0:01:56]}  a5 {[%clk 0:01:20]} 36. Kd2 {[%clk 0:01:55]}  Ke5 {[%clk 0:01:16]} 37. Kd3 {[%clk 0:01:55]}  Ke6 {[%clk 0:01:16]} 38. Nd1 {[%clk 0:01:49]}  Ke5 {[%clk 0:01:16]} 39. Nb2 {[%clk 0:01:49]}  Ke6 {[%clk 0:01:15]} 40. Na4 {[%clk 0:01:48]}  Kd6 {[%clk 0:01:15]} 41. Nb6 {[%clk 0:01:42]}  Ke5 {[%clk 0:01:12]} 42. Nd5 {[%clk 0:01:42]}  Kd6 {[%clk 0:01:11]} 43. Nf6 {[%clk 0:01:32]}  Ke5 {[%clk 0:01:09]} 44. Nh7 {[%clk 0:01:33]}  f3 {[%clk 0:01:00]} 45. Nxg5 {[%clk 0:01:32]}  f2 {[%clk 0:00:58]} 46. Ke2 {[%clk 0:01:31]}  Kf4 {[%clk 0:00:59]} 47. Kxf2 {[%clk 0:01:30]}  Kxg5 {[%clk 0:00:59]} 48. Kg3 {[%clk 0:01:30]}  Kf6 {[%clk 0:00:59]} 49. Kf4 {[%clk 0:01:30]}  Ke6 {[%clk 0:00:55]} 50. h4 {[%clk 0:01:31]} 1-0


[Site "https://www.chess.com"]

[Event "Titled Tuesday Blitz June 27 Late 2023"]
[White "Howell, David W L"]
[Black "Alberto, Manuel"]
[WhiteFideId "410608"]
[BlackFideId "10100148"]
[WhiteElo "3002"]
[BlackElo "2004"]
[Result "1-0"]
[Round "6"]
[TimeControl "180+2"]
[Date "2023.06.27"]
[WhiteClock "0:02:12"]
[BlackClock "0:00:00"]
[Board "150"]

1. e4 {[%clk 0:03:00]}  c5 {[%clk 0:02:59]} 2. Nf3 {[%clk 0:03:00]}  d6 {[%clk 0:02:59]} 3. d4 {[%clk 0:02:59]}  cxd4 {[%clk 0:02:59]} 4. Qxd4 {[%clk 0:02:57]}  Nc6 {[%clk 0:02:58]} 5. Qe3 {[%clk 0:02:53]}  Nf6 {[%clk 0:02:56]} 6. h3 {[%clk 0:02:52]}  g6 {[%clk 0:02:53]} 7. c4 {[%clk 0:02:47]}  Bg7 {[%clk 0:02:53]} 8. Nc3 {[%clk 0:02:48]}  O-O {[%clk 0:02:52]} 9. Be2 {[%clk 0:02:48]}  a6 {[%clk 0:02:50]} 10. O-O {[%clk 0:02:49]}  Bd7 {[%clk 0:02:48]} 11. Rd1 {[%clk 0:02:45]}  Rc8 {[%clk 0:02:41]} 12. Bd2 {[%clk 0:02:46]}  Qe8 {[%clk 0:02:33]} 13. Rac1 {[%clk 0:02:43]}  Be6 {[%clk 0:02:26]} 14. b3 {[%clk 0:02:41]}  h6 {[%clk 0:02:24]} 15. Nd5 {[%clk 0:02:34]}  Nd7 {[%clk 0:02:21]} 16. Bc3 {[%clk 0:02:30]}  Nce5 {[%clk 0:02:14]} 17. Nd4 {[%clk 0:02:27]}  Nc5 {[%clk 0:02:11]} 18. f4 {[%clk 0:02:19]}  Nc6 {[%clk 0:02:10]} 19. Bf3 {[%clk 0:02:19]}  Nxd4 {[%clk 0:02:06]} 20. Bxd4 {[%clk 0:02:19]}  b5 {[%clk 0:00:00]} 21. Bxg7 {[%clk 0:02:12]} 1-0


[Site "https://www.chess.com"]

[Event "Titled Tuesday Blitz June 27 Late 2023"]
[White "Gyulamiryan-koryun"]
[Black "Bulgurlu, Okan"]
[BlackFideId "6352316"]
[WhiteElo "2076"]
[BlackElo "2289"]
[Result "0-1"]
[Round "6"]
[TimeControl "180+2"]
[Date "2023.06.27"]
[WhiteClock "0:00:09"]
[BlackClock "0:00:13"]
[Board "152"]

1. e4 {[%clk 0:02:53]}  e5 {[%clk 0:02:59]} 2. f4 {[%clk 0:02:53]}  exf4 {[%clk 0:02:57]} 3. Nf3 {[%clk 0:02:53]}  d5 {[%clk 0:02:57]} 4. e5 {[%clk 0:02:52]}  c5 {[%clk 0:02:49]} 5. Be2 {[%clk 0:02:48]}  Nc6 {[%clk 0:02:49]} 6. O-O {[%clk 0:02:47]}  Nh6 {[%clk 0:02:35]} 7. d3 {[%clk 0:02:44]}  g5 {[%clk 0:02:30]} 8. h4 {[%clk 0:02:31]}  gxh4 {[%clk 0:02:12]} 9. Bxf4 {[%clk 0:02:30]}  Rg8 {[%clk 0:02:12]} 10. Qd2 {[%clk 0:02:24]}  Nf5 {[%clk 0:01:38]} 11. Bg5 {[%clk 0:02:18]}  Be7 {[%clk 0:01:37]} 12. Bxe7 {[%clk 0:02:05]}  Qxe7 {[%clk 0:01:35]} 13. Nc3 {[%clk 0:02:02]}  Be6 {[%clk 0:01:34]} 14. Nb5 {[%clk 0:02:01]}  h3 {[%clk 0:01:30]} 15. Rf2 {[%clk 0:01:51]}  O-O-O {[%clk 0:01:25]} 16. Qf4 {[%clk 0:01:34]}  Rg6 {[%clk 0:00:43]} 17. g4 {[%clk 0:01:33]}  Rdg8 {[%clk 0:00:35]} 18. Nh2 {[%clk 0:01:28]}  h5 {[%clk 0:00:34]} 19. Nd6+ {[%clk 0:01:11]}  Nxd6 {[%clk 0:00:34]} 20. exd6 {[%clk 0:01:11]}  Qh4 {[%clk 0:00:35]} 21. Kh1 {[%clk 0:01:03]}  hxg4 {[%clk 0:00:34]} 22. Bxg4 {[%clk 0:00:54]}  Rxg4 {[%clk 0:00:21]} 23. Nxg4 {[%clk 0:00:50]}  Rxg4 {[%clk 0:00:22]} 24. Qf6 {[%clk 0:00:47]}  Qg3 {[%clk 0:00:22]} 25. Rh2 {[%clk 0:00:25]}  d4 {[%clk 0:00:14]} 26. d7+ {[%clk 0:00:19]}  Kxd7 {[%clk 0:00:13]} 27. Re2 {[%clk 0:00:11]}  Bd5+ {[%clk 0:00:12]} 28. Re4 {[%clk 0:00:09]}  Qg2# {[%clk 0:00:13]} 0-1


[Site "https://www.chess.com"]

[Event "Titled Tuesday Blitz June 27 Late 2023"]
[White "Shubin, Daniel"]
[Black "Blackwhite017"]
[WhiteFideId "30936470"]
[WhiteElo "2232"]
[BlackElo "2074"]
[Result "1-0"]
[Round "6"]
[TimeControl "180+2"]
[Date "2023.06.27"]
[WhiteClock "0:02:04"]
[BlackClock "0:01:55"]
[Board "153"]

1. e4 {[%clk 0:02:49]}  c5 {[%clk 0:03:00]} 2. Nf3 {[%clk 0:02:47]}  d6 {[%clk 0:02:56]} 3. d4 {[%clk 0:02:35]}  cxd4 {[%clk 0:02:57]} 4. Nxd4 {[%clk 0:02:36]}  Nf6 {[%clk 0:02:57]} 5. Nc3 {[%clk 0:02:36]}  g6 {[%clk 0:02:57]} 6. Be3 {[%clk 0:02:36]}  Bg7 {[%clk 0:02:58]} 7. Bc4 {[%clk 0:02:36]}  O-O {[%clk 0:02:58]} 8. h3 {[%clk 0:02:37]}  Nbd7 {[%clk 0:02:52]} 9. Bb3 {[%clk 0:02:33]}  a6 {[%clk 0:02:52]} 10. O-O {[%clk 0:02:33]}  b5 {[%clk 0:02:52]} 11. Nc6 {[%clk 0:02:27]}  Qe8 {[%clk 0:02:46]} 12. Nd5 {[%clk 0:02:27]}  Nxd5 {[%clk 0:02:38]} 13. Bxd5 {[%clk 0:02:28]}  Nf6 {[%clk 0:02:14]} 14. Nxe7+ {[%clk 0:02:15]}  Qxe7 {[%clk 0:02:14]} 15. Bxa8 {[%clk 0:02:15]}  Nxe4 {[%clk 0:02:14]} 16. Bxe4 {[%clk 0:02:14]}  Qxe4 {[%clk 0:02:15]} 17. Qxd6 {[%clk 0:02:14]}  Bb7 {[%clk 0:02:13]} 18. Qg3 {[%clk 0:02:08]}  Be5 {[%clk 0:01:55]} 19. Qf3 {[%clk 0:02:04]} 1-0


[Site "https://www.chess.com"]

[Event "Titled Tuesday Blitz June 27 Late 2023"]
[White "Ottosen, David"]
[Black "Cardenas Carbajal, Nilson"]
[WhiteFideId "2603080"]
[BlackFideId "8401128"]
[WhiteElo "2023"]
[BlackElo "2112"]
[Result "1-0"]
[Round "6"]
[TimeControl "180+2"]
[Date "2023.06.27"]
[WhiteClock "0:01:23"]
[BlackClock "0:00:00"]
[Board "155"]

1. e4 {[%clk 0:03:00]}  c5 {[%clk 0:02:59]} 2. Nf3 {[%clk 0:03:01]}  d6 {[%clk 0:02:59]} 3. d4 {[%clk 0:03:00]}  cxd4 {[%clk 0:02:59]} 4. Nxd4 {[%clk 0:03:00]}  Nf6 {[%clk 0:02:59]} 5. Nc3 {[%clk 0:03:01]}  a6 {[%clk 0:02:59]} 6. Be3 {[%clk 0:03:00]}  e5 {[%clk 0:02:58]} 7. Nb3 {[%clk 0:03:00]}  Be6 {[%clk 0:02:57]} 8. Qd2 {[%clk 0:03:00]}  Be7 {[%clk 0:02:51]} 9. f4 {[%clk 0:02:59]}  exf4 {[%clk 0:02:29]} 10. Bxf4 {[%clk 0:02:59]}  Nc6 {[%clk 0:02:28]} 11. Nd4 {[%clk 0:02:58]}  Ne5 {[%clk 0:02:27]} 12. Nf5 {[%clk 0:02:58]}  Bxf5 {[%clk 0:02:24]} 13. exf5 {[%clk 0:02:59]}  O-O {[%clk 0:02:20]} 14. O-O-O {[%clk 0:02:58]}  Qc7 {[%clk 0:02:10]} 15. Be2 {[%clk 0:02:47]}  b5 {[%clk 0:02:08]} 16. Nd5 {[%clk 0:02:46]}  Nxd5 {[%clk 0:02:00]} 17. Qxd5 {[%clk 0:02:47]}  Rac8 {[%clk 0:01:58]} 18. Rd2 {[%clk 0:02:45]}  Rfd8 {[%clk 0:01:48]} 19. g4 {[%clk 0:02:44]}  Nc4 {[%clk 0:01:26]} 20. Bxc4 {[%clk 0:02:44]}  Qxc4 {[%clk 0:01:27]} 21. Qxc4 {[%clk 0:02:43]}  Rxc4 {[%clk 0:01:26]} 22. Rf1 {[%clk 0:02:41]}  d5 {[%clk 0:01:18]} 23. b3 {[%clk 0:02:38]}  Re4 {[%clk 0:01:14]} 24. Kd1 {[%clk 0:02:10]}  Bb4 {[%clk 0:01:11]} 25. Re2 {[%clk 0:02:10]}  Rd4+ {[%clk 0:01:04]} 26. Bd2 {[%clk 0:01:59]}  Bxd2 {[%clk 0:01:02]} 27. Rxd2 {[%clk 0:02:00]}  Rxg4 {[%clk 0:01:02]} 28. f6 {[%clk 0:01:54]}  gxf6 {[%clk 0:00:58]} 29. Rxf6 {[%clk 0:01:53]}  Kg7 {[%clk 0:00:55]} 30. Rxa6 {[%clk 0:01:52]}  d4 {[%clk 0:00:53]} 31. Ra5 {[%clk 0:01:50]}  b4 {[%clk 0:00:52]} 32. Rb5 {[%clk 0:01:49]}  Rg1+ {[%clk 0:00:50]} 33. Ke2 {[%clk 0:01:49]}  Rg2+ {[%clk 0:00:15]} 34. Kd3 {[%clk 0:01:48]}  Rxd2+ {[%clk 0:00:15]} 35. Kxd2 {[%clk 0:01:49]}  Re8 {[%clk 0:00:12]} 36. Rxb4 {[%clk 0:01:48]}  Re4 {[%clk 0:00:12]} 37. a4 {[%clk 0:01:46]}  f5 {[%clk 0:00:12]} 38. a5 {[%clk 0:01:46]}  f4 {[%clk 0:00:12]} 39. Kd3 {[%clk 0:01:44]}  Re5 {[%clk 0:00:11]} 40. Rxd4 {[%clk 0:01:42]}  Rxa5 {[%clk 0:00:11]} 41. Rxf4 {[%clk 0:01:42]}  Kg6 {[%clk 0:00:11]} 42. b4 {[%clk 0:01:42]}  Ra1 {[%clk 0:00:09]} 43. c4 {[%clk 0:01:40]}  Kg5 {[%clk 0:00:09]} 44. Rf3 {[%clk 0:01:39]}  h5 {[%clk 0:00:08]} 45. Rg3+ {[%clk 0:01:39]}  Kf4 {[%clk 0:00:08]} 46. c5 {[%clk 0:01:38]}  h4 {[%clk 0:00:06]} 47. Rg8 {[%clk 0:01:37]}  Rb1 {[%clk 0:00:06]} 48. Kc4 {[%clk 0:01:38]}  Rb2 {[%clk 0:00:05]} 49. c6 {[%clk 0:01:37]}  Rxh2 {[%clk 0:00:05]} 50. b5 {[%clk 0:01:35]}  Rc2+ {[%clk 0:00:03]} 51. Kd5 {[%clk 0:01:34]}  h3 {[%clk 0:00:03]} 52. Rh8 {[%clk 0:01:34]}  Kg3 {[%clk 0:00:03]} 53. b6 {[%clk 0:01:33]}  h2 {[%clk 0:00:02]} 54. b7 {[%clk 0:01:32]}  Rb2 {[%clk 0:00:00]} 55. Rxh2 {[%clk 0:01:23]} 1-0


[Site "https://www.chess.com"]

[Event "Titled Tuesday Blitz June 27 Late 2023"]
[White "Carlsen, Magnus"]
[Black "Bortnyk, Olexandr"]
[WhiteFideId "1503014"]
[BlackFideId "14120828"]
[WhiteElo "3300"]
[BlackElo "2999"]
[Result "1/2-1/2"]
[Round "7"]
[TimeControl "180+2"]
[Date "2023.06.27"]
[WhiteClock "0:00:20"]
[BlackClock "0:00:05"]
[Board "1"]

1. d4 {[%clk 0:03:00]}  Nf6 {[%clk 0:02:59]} 2. Nf3 {[%clk 0:02:59]}  b6 {[%clk 0:02:57]} 3. g3 {[%clk 0:02:57]}  Bb7 {[%clk 0:02:58]} 4. Bg2 {[%clk 0:02:58]}  g6 {[%clk 0:02:59]} 5. c4 {[%clk 0:02:57]}  Bg7 {[%clk 0:02:59]} 6. O-O {[%clk 0:02:57]}  O-O {[%clk 0:03:00]} 7. h4 {[%clk 0:02:58]}  d6 {[%clk 0:02:41]} 8. Nc3 {[%clk 0:02:30]}  Ne4 {[%clk 0:02:40]} 9. Nxe4 {[%clk 0:02:31]}  Bxe4 {[%clk 0:02:41]} 10. h5 {[%clk 0:02:31]}  c5 {[%clk 0:02:37]} 11. h6 {[%clk 0:02:24]}  Bh8 {[%clk 0:02:33]} 12. Be3 {[%clk 0:02:23]}  Nc6 {[%clk 0:02:30]} 13. d5 {[%clk 0:02:22]}  Bxf3 {[%clk 0:02:29]} 14. exf3 {[%clk 0:02:20]}  Nd4 {[%clk 0:02:18]} 15. Re1 {[%clk 0:02:20]}  Qd7 {[%clk 0:02:16]} 16. a4 {[%clk 0:02:14]}  Rae8 {[%clk 0:02:11]} 17. f4 {[%clk 0:02:11]}  Nf5 {[%clk 0:01:51]} 18. Bh3 {[%clk 0:02:10]}  Bxb2 {[%clk 0:01:50]} 19. Ra2 {[%clk 0:02:06]}  Bf6 {[%clk 0:01:36]} 20. Qd3 {[%clk 0:02:05]}  e6 {[%clk 0:01:23]} 21. dxe6 {[%clk 0:01:59]}  Qxe6 {[%clk 0:01:12]} 22. a5 {[%clk 0:01:57]}  Qe4 {[%clk 0:01:03]} 23. Qxe4 {[%clk 0:01:57]}  Rxe4 {[%clk 0:01:04]} 24. Bxf5 {[%clk 0:01:57]}  gxf5 {[%clk 0:01:04]} 25. Rd1 {[%clk 0:01:55]}  Rd8 {[%clk 0:00:47]} 26. axb6 {[%clk 0:01:48]}  axb6 {[%clk 0:00:48]} 27. Rd5 {[%clk 0:01:46]}  Rxc4 {[%clk 0:00:44]} 28. Rxf5 {[%clk 0:01:46]}  Be7 {[%clk 0:00:38]} 29. Ra7 {[%clk 0:01:44]}  Kf8 {[%clk 0:00:36]} 30. Rb7 {[%clk 0:01:24]}  d5 {[%clk 0:00:36]} 31. Re5 {[%clk 0:00:33]}  Bf6 {[%clk 0:00:36]} 32. Rg5 {[%clk 0:00:33]}  d4 {[%clk 0:00:30]} 33. Rf5 {[%clk 0:00:32]}  Rd6 {[%clk 0:00:26]} 34. Bd2 {[%clk 0:00:31]}  Rc2 {[%clk 0:00:25]} 35. g4 {[%clk 0:00:23]}  Rxd2 {[%clk 0:00:21]} 36. g5 {[%clk 0:00:23]}  Be7 {[%clk 0:00:15]} 37. Re5 {[%clk 0:00:23]}  Bd8 {[%clk 0:00:10]} 38. Rf5 {[%clk 0:00:23]}  Be7 {[%clk 0:00:09]} 39. Re5 {[%clk 0:00:21]}  Bd8 {[%clk 0:00:04]} 40. Rf5 {[%clk 0:00:20]}  Be7 {[%clk 0:00:05]} 1/2-1/2


[Site "https://www.chess.com"]

[Event "Titled Tuesday Blitz June 27 Late 2023"]
[White "Nakamura, Hikaru"]
[Black "Martinez Alcantara, Jose Eduardo"]
[WhiteFideId "2016192"]
[BlackFideId "3805662"]
[WhiteElo "3222"]
[BlackElo "3017"]
[Result "1/2-1/2"]
[Round "7"]
[TimeControl "180+2"]
[Date "2023.06.27"]
[WhiteClock "0:00:14"]
[BlackClock "0:00:24"]
[Board "2"]

1. e4 {[%clk 0:02:41]}  c5 {[%clk 0:02:59]} 2. Nf3 {[%clk 0:02:35]}  d6 {[%clk 0:02:59]} 3. c3 {[%clk 0:02:35]}  Nf6 {[%clk 0:02:59]} 4. Qc2 {[%clk 0:02:35]}  Nc6 {[%clk 0:02:53]} 5. d4 {[%clk 0:02:35]}  g6 {[%clk 0:02:46]} 6. dxc5 {[%clk 0:02:33]}  dxc5 {[%clk 0:02:46]} 7. Be3 {[%clk 0:02:34]}  Nd7 {[%clk 0:02:37]} 8. Na3 {[%clk 0:02:25]}  Bg7 {[%clk 0:02:36]} 9. Be2 {[%clk 0:02:25]}  O-O {[%clk 0:02:37]} 10. O-O {[%clk 0:02:25]}  Qc7 {[%clk 0:02:36]} 11. Rfd1 {[%clk 0:02:24]}  a6 {[%clk 0:02:36]} 12. Qc1 {[%clk 0:02:21]}  b5 {[%clk 0:02:33]} 13. Bh6 {[%clk 0:02:21]}  Nf6 {[%clk 0:02:29]} 14. Bxg7 {[%clk 0:02:20]}  Kxg7 {[%clk 0:02:30]} 15. Qe3 {[%clk 0:02:20]}  Ne5 {[%clk 0:02:23]} 16. Nxe5 {[%clk 0:01:57]}  Qxe5 {[%clk 0:02:24]} 17. f3 {[%clk 0:01:57]}  Be6 {[%clk 0:02:23]} 18. Nb1 {[%clk 0:01:56]}  Rac8 {[%clk 0:02:00]} 19. Qf2 {[%clk 0:01:45]}  Rfd8 {[%clk 0:01:53]} 20. Nd2 {[%clk 0:01:44]}  g5 {[%clk 0:01:43]} 21. Qg3 {[%clk 0:01:29]}  Qxg3 {[%clk 0:01:29]} 22. hxg3 {[%clk 0:01:30]}  Rb8 {[%clk 0:01:25]} 23. Kf2 {[%clk 0:01:28]}  Nd7 {[%clk 0:01:20]} 24. Ke3 {[%clk 0:01:17]}  Nb6 {[%clk 0:01:20]} 25. b3 {[%clk 0:01:17]}  f6 {[%clk 0:01:18]} 26. f4 {[%clk 0:01:13]}  h6 {[%clk 0:01:18]} 27. Nf3 {[%clk 0:01:10]}  Bf7 {[%clk 0:01:15]} 28. Ne1 {[%clk 0:01:05]}  c4 {[%clk 0:01:07]} 29. b4 {[%clk 0:01:05]}  Na4 {[%clk 0:01:08]} 30. Rdc1 {[%clk 0:01:04]}  e5 {[%clk 0:01:08]} 31. fxe5 {[%clk 0:00:59]}  fxe5 {[%clk 0:01:09]} 32. Bd1 {[%clk 0:00:58]}  Rd6 {[%clk 0:00:54]} 33. Bxa4 {[%clk 0:00:45]}  bxa4 {[%clk 0:00:55]} 34. Rd1 {[%clk 0:00:44]}  Rbd8 {[%clk 0:00:54]} 35. Rxd6 {[%clk 0:00:45]}  Rxd6 {[%clk 0:00:55]} 36. Rb1 {[%clk 0:00:45]}  Be8 {[%clk 0:00:50]} 37. Rc1 {[%clk 0:00:36]}  a3 {[%clk 0:00:47]} 38. Ke2 {[%clk 0:00:29]}  Ba4 {[%clk 0:00:29]} 39. Nf3 {[%clk 0:00:24]}  Bc6 {[%clk 0:00:25]} 40. Nxe5 {[%clk 0:00:20]}  Bxe4 {[%clk 0:00:25]} 41. Ke3 {[%clk 0:00:20]}  Bxg2 {[%clk 0:00:23]} 42. Nxc4 {[%clk 0:00:20]}  Rf6 {[%clk 0:00:24]} 43. Ne5 {[%clk 0:00:20]}  Re6 {[%clk 0:00:22]} 44. Kd4 {[%clk 0:00:20]}  Rd6+ {[%clk 0:00:23]} 45. Ke3 {[%clk 0:00:20]}  Re6 {[%clk 0:00:23]} 46. Kd4 {[%clk 0:00:17]}  Rd6+ {[%clk 0:00:23]} 47. Ke3 {[%clk 0:00:14]}  Re6 {[%clk 0:00:24]} 1/2-1/2


[Site "https://www.chess.com"]

[Event "Titled Tuesday Blitz June 27 Late 2023"]
[White "Sargsyan, Shant"]
[Black "Mikaelyan, Arman"]
[WhiteFideId "13306766"]
[BlackFideId "13304852"]
[WhiteElo "3016"]
[BlackElo "2903"]
[Result "1-0"]
[Round "7"]
[TimeControl "180+2"]
[Date "2023.06.27"]
[WhiteClock "0:00:42"]
[BlackClock "0:00:00"]
[Board "3"]

1. c4 {[%clk 0:03:00]}  c6 {[%clk 0:02:59]} 2. Nf3 {[%clk 0:03:00]}  d5 {[%clk 0:03:00]} 3. e3 {[%clk 0:03:01]}  Nf6 {[%clk 0:03:00]} 4. Nc3 {[%clk 0:02:59]}  Nbd7 {[%clk 0:03:00]} 5. cxd5 {[%clk 0:02:58]}  cxd5 {[%clk 0:03:01]} 6. b3 {[%clk 0:02:57]}  e5 {[%clk 0:02:56]} 7. Bb2 {[%clk 0:02:57]}  Bd6 {[%clk 0:02:53]} 8. Nb5 {[%clk 0:02:56]}  Bb8 {[%clk 0:02:47]} 9. Ba3 {[%clk 0:02:56]}  Nb6 {[%clk 0:02:24]} 10. d4 {[%clk 0:02:42]}  a6 {[%clk 0:02:16]} 11. Nc3 {[%clk 0:02:38]}  e4 {[%clk 0:02:12]} 12. Ne5 {[%clk 0:02:38]}  Bd6 {[%clk 0:02:08]} 13. Bxd6 {[%clk 0:02:30]}  Qxd6 {[%clk 0:02:09]} 14. Be2 {[%clk 0:02:30]}  O-O {[%clk 0:02:08]} 15. O-O {[%clk 0:02:29]}  Nbd7 {[%clk 0:02:09]} 16. Nxd7 {[%clk 0:02:12]}  Bxd7 {[%clk 0:02:10]} 17. Qd2 {[%clk 0:02:12]}  Rac8 {[%clk 0:02:10]} 18. Rac1 {[%clk 0:02:12]}  Rc7 {[%clk 0:02:08]} 19. Rc2 {[%clk 0:01:49]}  Rfc8 {[%clk 0:02:08]} 20. Rfc1 {[%clk 0:01:49]}  Qb4 {[%clk 0:01:48]} 21. Bd1 {[%clk 0:01:37]}  Bg4 {[%clk 0:01:14]} 22. Nxe4 {[%clk 0:00:59]}  Rxc2 {[%clk 0:00:16]} 23. Rxc2 {[%clk 0:01:00]}  Qxd2 {[%clk 0:00:11]} 24. Rxc8+ {[%clk 0:01:00]}  Bxc8 {[%clk 0:00:12]} 25. Nxd2 {[%clk 0:01:00]}  Kf8 {[%clk 0:00:12]} 26. f3 {[%clk 0:01:00]}  Ke7 {[%clk 0:00:12]} 27. Bc2 {[%clk 0:01:00]}  g6 {[%clk 0:00:11]} 28. Kf2 {[%clk 0:01:01]}  Ne8 {[%clk 0:00:11]} 29. e4 {[%clk 0:01:01]}  dxe4 {[%clk 0:00:05]} 30. fxe4 {[%clk 0:01:02]}  Nd6 {[%clk 0:00:06]} 31. Ke3 {[%clk 0:01:02]}  b5 {[%clk 0:00:05]} 32. b4 {[%clk 0:00:59]}  f6 {[%clk 0:00:05]} 33. Bb3 {[%clk 0:00:57]}  Bb7 {[%clk 0:00:06]} 34. a3 {[%clk 0:00:56]}  h6 {[%clk 0:00:05]} 35. g3 {[%clk 0:00:57]}  Ne8 {[%clk 0:00:05]} 36. Nb1 {[%clk 0:00:54]}  Nd6 {[%clk 0:00:04]} 37. Nc3 {[%clk 0:00:55]}  Bc6 {[%clk 0:00:04]} 38. Kd3 {[%clk 0:00:54]}  Bb7 {[%clk 0:00:04]} 39. Nd5+ {[%clk 0:00:50]}  Bxd5 {[%clk 0:00:02]} 40. Bxd5 {[%clk 0:00:51]}  Kd7 {[%clk 0:00:01]} 41. e5 {[%clk 0:00:50]}  fxe5 {[%clk 0:00:02]} 42. dxe5 {[%clk 0:00:51]}  Ne8 {[%clk 0:00:01]} 43. Bf7 {[%clk 0:00:47]}  Nc7 {[%clk 0:00:02]} 44. Bxg6 {[%clk 0:00:46]}  Na8 {[%clk 0:00:01]} 45. Bf7 {[%clk 0:00:41]}  Nb6 {[%clk 0:00:01]} 46. Bb3 {[%clk 0:00:42]}  Ke7 {[%clk 0:00:00]} 47. g4 {[%clk 0:00:42]} 1-0


[Site "https://www.chess.com"]